bitfinex/quotes_ETHUSD_20250129
["timestamp","ask_amount","ask_price","bid_price","bid_amount"]
[1738180700038,0.64393151,3127.5,3126.4,3.19854]
[1738180700218,3.0,3127.2,3126.4,3.19854]
[1738180700402,6.19782,3127.2,3126.5,3.19844]
[1738180700607,3.74793,3127.1,3126.4,3.19854]
[1738180700842,3.74793,3127.1,3126.2,3.19875]
[1738180700843,3.19806,3126.9,3126.2,3.19869]
[1738180701150,3.19808,3126.9,3125.9,3.199]
[1738180701345,0.55,3126.8,3126.2,3.19872]
[1738180701647,0.55,3126.9,3125.7,3.19928]
[1738180701972,0.64393151,3127.5,3126.5,3.19843]
[1738180702109,0.64393151,3127.5,3125.6,0.8241]
[1738180702313,0.64393151,3127.5,3125.1,3.19985]
[1738180702314,0.55,3126.4,3125.2,3.19975]
[1738180702621,0.7833,3125.9,3125.5,3.19947]
[1738180702829,0.7833,3125.9,3125.7,3.19928]
[1738180703023,1.42480086,3126.4,3125.7,3.19928]
[1738180703227,3.55,3126.1,3124.6,0.7588]
[1738180703414,3.0,3126.2,3124.3,3.20068]
[1738180703621,0.7638,3125.0,3124.6,3.20039]
[1738180703845,0.7638,3125.0,3123.5,0.8159]
[1738180703846,0.7638,3125.0,3124.5,3.20049]
[1738180704045,0.7638,3125.0,3124.8,3.20013]
[1738180704247,0.7638,3125.5,3125.2,3.19978]
[1738180704455,0.2,3127.0,3124.0,0.015]
[1738180704456,0.7638,3126.7,3125.0,0.0075]
[1738180704658,3.96212,3126.7,3126.0,3.19887]
[1738180704957,3.96212,3126.7,3125.1,3.19989]
[1738180704958,3.19868,3126.3,3125.6,3.19931]
[1738180705142,0.55,3126.3,3125.7,3.19922]
[1738180705353,0.7638,3126.7,3125.3,3.0]
[1738180705531,3.19768,3127.3,3126.6,3.19833]
[1738180705714,0.7681,3128.1,3126.1,0.0075]
[1738180705917,0.7681,3128.1,3125.8,3.19918]
[1738180705918,3.19791,3127.1,3125.8,3.19918]
[1738180706118,0.64054139,3127.6,3126.2,3.1987]
[1738180706124,3.97805,3126.9,3126.2,3.1987]
[1738180706322,3.0,3126.8,3126.2,3.1987]
[1738180706639,6.19822,3126.8,3126.1,3.19878]
[1738180706842,0.55,3126.8,3125.5,0.0075]
[1738180707048,0.78,3126.9,3126.5,3.19845]
[1738180707356,0.55,3126.8,3125.4,0.7715]
[1738180707560,3.19844,3126.6,3125.8,3.19911]
[1738180707754,3.0,3126.7,3126.0,3.19897]
[1738180707956,3.19833,3126.7,3126.0,3.19889]
[1738180708177,0.62891632,3126.8,3125.4,3.19956]
[1738180708362,3.19909,3125.9,3125.0,3.2]
[1738180708519,3.19902,3126.0,3125.3,3.19967]
[1738180708730,0.8232,3125.8,3124.1,0.8233]
[1738180709073,0.8232,3125.8,3125.3,3.19968]
[1738180709478,0.8232,3125.8,3125.4,3.19952]
[1738180709643,0.8232,3125.8,3125.6,3.19937]
[1738180709825,3.0,3126.4,3125.2,0.7628]
[1738180709826,0.7959,3126.4,3125.2,0.7628]
[1738180710145,0.7959,3126.4,3126.2,3.19874]
[1738180710326,0.1,3128.3,3125.5,0.0075]
[1738180710327,3.19713,3127.8,3125.5,0.0075]
[1738180710523,0.8331,3126.9,3126.2,3.19869]
[1738180710725,0.8331,3126.9,3126.4,3.19848]
[1738180710925,0.8331,3126.9,3126.7,3.19822]
[1738180711147,1.58363137,3130.1,3126.7,3.19822]
[1738180711148,3.99307,3127.9,3127.3,3.19762]
[1738180711323,3.99311,3127.9,3127.2,3.19768]
[1738180711524,0.796,3127.9,3126.4,0.7844]
[1738180711766,0.0075,3127.8,3125.9,3.0]
[1738180711990,3.19759,3127.4,3126.5,3.19841]
[1738180712195,3.19786,3127.1,3126.3,3.19861]
[1738180712356,3.19729,3127.7,3125.8,3.99838]
[1738180712357,0.55,3127.0,3126.2,3.19876]
[1738180712798,0.55,3126.9,3126.4,3.19856]
[1738180713004,0.63986123,3127.4,3126.8,3.19815]
[1738180713151,0.63986123,3127.4,3126.4,3.19853]
[1738180713486,3.55,3126.6,3125.4,3.19957]
[1738180713692,0.55,3125.9,3125.4,3.19957]
[1738180713852,3.19908,3125.9,3125.1,3.19984]
[1738180714055,0.55,3125.6,3124.8,3.2001]
[1738180714273,3.19989,3125.1,3124.2,3.20077]
[1738180714474,0.7849,3125.5,3125.1,3.19988]
[1738180714711,0.7849,3125.5,3124.5,0.015]
[1738180714865,0.7849,3126.0,3125.3,3.19966]
[1738180715197,3.0,3125.9,3125.3,3.19962]
[1738180715522,0.7661,3126.8,3125.9,3.19907]
[1738180715654,0.7661,3126.8,3126.1,3.19886]
[1738180715989,3.0,3126.5,3126.0,3.19896]
[1738180716413,0.7661,3126.8,3126.5,3.19844]
[1738180716556,0.7583,3127.3,3126.2,3.1987]
[1738180716755,0.7583,3127.3,3127.0,3.19785]
[1738180717055,0.7583,3127.3,3125.7,3.19925]
[1738180717056,3.19823,3126.8,3126.1,3.19885]
[1738180717252,3.55,3126.9,3126.3,3.19859]
[1738180717616,0.7902,3126.7,3126.1,3.19885]
[1738180717819,0.7902,3126.7,3125.7,0.8257]
[1738180717820,3.19864,3126.4,3125.7,3.19926]
[1738180718101,3.19864,3126.4,3125.1,0.7992]
[1738180718102,3.19883,3126.2,3125.5,3.19942]
[1738180718306,3.19883,3126.2,3125.3,3.19964]
[1738180718457,3.74845,3126.6,3124.7,1.46333621]
[1738180718657,0.55,3126.6,3126.0,3.19894]
[1738180718863,0.55,3126.6,3124.7,0.8204]
[1738180718864,0.55,3125.8,3124.7,0.8204]
[1738180719056,3.19908,3125.9,3124.0,4.19103074]
[1738180719057,3.19972,3125.3,3124.6,3.20033]
[1738180719499,6.1998,3125.2,3124.6,3.20033]
[1738180719903,3.0,3125.2,3124.7,3.20028]
[1738180720078,3.19951,3125.5,3123.8,0.64555965]
[1738180720079,3.2003,3124.8,3124.1,3.20085]
[1738180720262,3.2003,3124.8,3123.5,3.20147]
[1738180720263,0.55,3125.0,3123.4,3.20163]
[1738180720463,3.20105,3124.0,3123.3,3.20168]
[1738180720665,3.20102,3124.0,3122.8,0.16197]
[1738180720870,0.7553,3124.3,3122.8,0.16197]
[1738180721082,3.20043,3124.6,3123.9,3.20103]
[1738180721588,3.20043,3124.6,3123.4,3.20162]
[1738180721589,3.0,3124.6,3124.0,3.20101]
[1738180721788,0.8222,3124.8,3124.4,3.2006]
[1738180722416,0.8033,3125.3,3124.9,3.20003]
[1738180723001,4.00256,3125.8,3125.2,3.19979]
[1738180723227,4.00256,3125.8,3124.4,3.20056]
[1738180723228,0.8033,3125.8,3125.3,3.1996]
[1738180723388,0.8033,3125.8,3125.5,3.19945]
[1738180723593,0.8319,3126.3,3124.7,0.0075]
[1738180723793,0.8319,3126.3,3125.9,3.19904]
[1738180724082,0.8319,3126.3,3125.7,3.19925]
[1738180724283,7.03059,3126.3,3125.5,3.19948]
[1738180724483,7.03059,3126.3,3125.7,3.19927]
[1738180724723,3.8319,3126.3,3125.8,3.19915]
[1738180725445,0.55,3126.0,3125.1,3.19979]
[1738180725590,3.0,3125.9,3125.3,3.19966]
[1738180725787,3.19925,3125.8,3124.6,0.8179]
[1738180726099,3.19928,3125.7,3124.8,3.20012]
[1738180726414,3.0,3125.9,3125.4,3.19958]
[1738180726620,0.8096,3126.8,3126.0,3.19893]
[1738180726825,0.7666,3127.3,3125.4,3.0]
[1738180727114,0.7666,3127.3,3125.2,3.19979]
[1738180727288,0.7666,3127.3,3126.5,3.19842]
[1738180727488,0.7666,3127.3,3126.7,3.19817]
[1738180727685,3.19777,3127.2,3126.5,3.19842]
[1738180727923,3.19777,3127.2,3126.5,3.19839]
[1738180728122,0.7666,3127.3,3126.7,3.19818]
[1738180728388,0.7937,3128.5,3128.1,3.19681]
[1738180728617,0.7937,3128.5,3128.2,3.19669]
[1738180728819,0.7937,3128.5,3128.0,3.1969]
[1738180729021,0.7937,3128.5,3127.2,3.0075]
[1738180729022,0.7937,3128.5,3128.2,3.19663]
[1738180729256,0.8068,3129.0,3127.7,3.0]
[1738180729538,0.7887,3129.5,3128.1,0.7589]
[1738180729688,3.7887,3129.5,3128.7,3.19612]
[1738180729888,3.1956,3129.3,3128.5,3.19636]
[1738180730107,3.19587,3129.1,3128.3,3.19654]
[1738180730308,3.19604,3128.9,3128.1,3.19681]
[1738180730922,3.19593,3129.0,3128.1,3.19681]
[1738180731120,0.55,3129.0,3127.6,0.7918]
[1738180731319,0.7887,3129.5,3128.8,3.19609]
[1738180731320,3.0,3129.2,3128.8,3.19609]
[1738180731521,0.65205214,3129.4,3128.9,3.196]
[1738180731697,0.7887,3129.5,3128.7,3.19619]
[1738180732026,0.55,3129.4,3128.6,3.19621]
[1738180732425,0.55,3129.4,3128.8,3.19603]
[1738180732727,0.55,3129.4,3127.7,0.64726135]
[1738180732728,3.0,3129.4,3128.7,3.19614]
[1738180732893,3.7887,3129.5,3128.9,3.19599]
[1738180733226,0.7887,3129.5,3128.9,3.19599]
[1738180733422,0.7887,3129.5,3129.1,3.19576]
[1738180733588,0.8279,3130.0,3128.6,3.19626]
[1738180733789,0.8279,3130.6,3128.7,4.142326]
[1738180733995,0.33188852,3130.7,3130.6,3.19427]
[1738180734620,0.8279,3131.1,3130.6,3.19427]
[1738180734829,0.8279,3131.1,3130.7,3.19412]
[1738180735024,0.8279,3131.1,3130.2,3.19463]
[1738180735329,0.8279,3131.1,3129.3,0.7818]
[1738180735626,0.8279,3131.1,3128.7,0.48517747]
[1738180735627,3.55,3130.1,3128.8,3.97785]
[1738180735833,3.55,3130.1,3127.6,3.19731]
[1738180735834,3.1957,3129.3,3128.3,3.9784]
[1738180736009,3.0,3129.7,3127.7,3.97896]
[1738180736195,0.55,3129.5,3127.8,0.81699907]
[1738180736392,0.64320811,3129.6,3127.9,3.19697]
[1738180736393,3.19619,3128.8,3127.9,3.19697]
[1738180736630,0.7881,3129.0,3128.3,3.19655]
[1738180736631,3.0,3128.9,3128.3,3.19655]
[1738180736842,3.98401,3129.0,3127.7,3.19721]
[1738180736843,0.7881,3129.0,3127.7,3.19721]
[1738180737134,3.19676,3128.2,3127.5,3.19743]
[1738180737438,3.0,3128.4,3127.3,3.19762]
[1738180737639,3.19612,3128.8,3128.1,3.19679]
[1738180737935,3.19612,3128.8,3128.2,3.19672]
[1738180738240,0.7881,3129.0,3127.7,0.8144]
[1738180738709,3.19517,3129.8,3128.5,0.0075]
[1738180738916,3.19517,3129.8,3128.9,3.19599]
[1738180738917,3.0,3129.6,3128.9,3.19599]
[1738180739240,0.8237,3129.8,3127.7,4.01161]
[1738180739410,0.8237,3129.8,3129.2,3.1956]
[1738180739609,0.8237,3129.8,3128.3,0.0075]
[1738180739819,0.8237,3129.8,3128.7,3.19618]
[1738180739820,3.1953,3129.6,3128.7,3.19618]
[1738180740007,3.19544,3129.5,3128.7,3.19618]
[1738180740211,3.0,3129.3,3127.7,1.46029347]
[1738180740423,3.19613,3128.8,3127.8,3.19713]
[1738180740703,3.19679,3128.2,3127.3,3.19757]
[1738180740904,0.8237,3129.1,3127.8,0.015]
[1738180741141,0.2,3131.0,3127.3,0.55]
[1738180741142,0.8237,3129.8,3128.6,6.39262]
[1738180741435,3.19456,3130.4,3128.6,6.39262]
[1738180741436,3.19485,3130.1,3129.3,3.1955]
[1738180741636,3.19478,3130.1,3129.4,3.19547]
[1738180741799,0.8237,3130.4,3129.0,3.1959]
[1738180742000,3.19512,3129.8,3128.4,3.19652]
[1738180742246,3.19512,3129.8,3129.0,3.19583]
[1738180742544,3.1962,3128.8,3128.3,0.7935]
[1738180742770,3.1962,3128.8,3128.1,3.19678]
[1738180742969,3.1962,3128.8,3127.7,0.7654]
[1738180743285,3.19648,3128.5,3127.7,3.19714]
[1738180743480,3.98585,3128.8,3128.1,3.19674]
[1738180743681,0.55,3128.6,3127.2,3.0]
[1738180743880,3.19642,3128.5,3127.1,3.96324]
[1738180744185,3.98588,3128.8,3128.0,3.19684]
[1738180744492,0.7897,3128.8,3128.1,3.1968]
[1738180744651,0.7897,3128.8,3127.2,0.703824]
[1738180744652,0.7897,3128.8,3127.3,0.015]
[1738180744849,0.7897,3128.8,3128.0,3.19683]
[1738180745050,3.19659,3128.4,3127.5,3.19734]
[1738180745358,0.55,3128.7,3127.1,7.96393074]
[1738180745359,3.1965,3128.5,3127.8,3.1971]
[1738180745554,3.98584,3128.8,3128.0,3.19688]
[1738180745753,3.98584,3128.8,3127.1,4.95643074]
[1738180745754,0.7897,3128.8,3128.4,3.1965]
[1738180745972,0.7542,3129.3,3128.6,3.19622]
[1738180746162,0.7542,3129.3,3128.9,3.19596]
[1738180746366,3.19437,3130.6,3128.9,3.19596]
[1738180746367,0.7982,3129.9,3128.9,0.319596]
[1738180746567,0.7982,3129.9,3128.1,4.98023074]
[1738180746568,0.7982,3131.4,3128.7,5.02923074]
[1738180746822,0.7982,3131.4,3129.7,4.01836]
[1738180746823,3.82583335,3131.2,3129.7,4.01836]
[1738180746959,3.82583335,3131.2,3129.5,3.1953]
[1738180746960,6.19376,3131.1,3129.5,3.1953]
[1738180747274,0.7785,3129.6,3128.2,3.19671]
[1738180747467,3.55,3129.5,3128.3,3.19655]
[1738180747796,3.19588,3129.1,3128.4,3.19644]
[1738180748000,3.19596,3129.0,3128.4,3.19644]
[1738180748199,3.19607,3128.9,3128.2,3.19665]
[1738180748385,3.19631,3128.6,3127.9,3.19695]
[1738180748593,3.98061,3128.6,3127.7,3.19721]
[1738180748817,3.98061,3128.6,3127.4,0.77]
[1738180749095,3.19692,3128.1,3127.5,3.19743]
[1738180749264,3.19705,3127.9,3127.3,3.19757]
[1738180749623,3.19705,3127.9,3126.9,0.783]
[1738180749624,3.19692,3128.1,3127.2,3.19771]
[1738180749801,3.19736,3127.6,3126.8,3.19815]
[1738180750007,3.19736,3127.6,3126.4,0.8241]
[1738180750008,3.0,3127.5,3126.9,3.19805]
[1738180750177,3.19758,3127.4,3126.6,3.19827]
[1738180750380,3.19758,3127.4,3126.8,3.19809]
[1738180750589,3.19714,3127.8,3127.1,3.19778]
[1738180750792,3.19714,3127.8,3126.9,3.19801]
[1738180750995,3.19748,3127.5,3126.9,3.19801]
[1738180751195,3.0,3127.5,3126.9,3.19797]
[1738180751405,3.0,3127.9,3127.0,3.19793]
[1738180751611,0.7906,3128.1,3127.0,0.63959]
[1738180751816,0.7906,3128.1,3127.7,3.1972]
[1738180752118,0.7906,3128.1,3127.8,3.19713]
[1738180752318,3.0,3128.3,3127.5,3.19743]
[1738180752475,0.55,3128.5,3127.2,3.19772]
[1738180752685,0.55,3128.5,3126.4,0.8241]
[1738180752686,3.19736,3127.6,3126.9,3.19802]
[1738180752982,3.19754,3127.4,3126.8,3.19806]
[1738180753179,0.7893,3127.6,3127.0,3.19787]
[1738180753684,0.8189,3128.1,3127.6,3.19725]
[1738180753900,3.19573,3129.2,3127.1,3.19785]
[1738180753901,3.19643,3128.5,3127.1,0.0075]
[1738180754102,3.19643,3128.5,3126.7,4.19103074]
[1738180754103,3.19712,3127.9,3126.7,4.19103074]
[1738180754281,3.19712,3127.9,3126.4,0.8241]
[1738180754282,0.55,3127.7,3126.4,0.8241]
[1738180754497,3.19823,3126.8,3126.0,3.19889]
[1738180754681,3.97143,3126.8,3126.1,3.19886]
[1738180754878,3.19843,3126.6,3125.8,3.19916]
[1738180755080,3.9714,3126.8,3125.5,0.0075]
[1738180755281,3.9714,3126.8,3126.3,3.19866]
[1738180755282,0.7732,3126.8,3126.3,3.19866]
[1738180755518,3.19777,3127.2,3126.3,3.19866]
[1738180755843,0.8076,3127.9,3127.3,3.19755]
[1738180756130,3.19715,3127.8,3127.0,3.19794]
[1738180756502,3.19715,3127.8,3127.1,3.19778]
[1738180756503,3.19723,3127.7,3127.1,3.19778]
[1738180756694,3.19723,3127.7,3126.5,4.01622]
[1738180756695,3.8076,3127.9,3127.4,3.19754]
[1738180757036,3.8076,3127.9,3126.5,0.8178]
[1738180757037,0.8076,3127.9,3126.9,3.19805]
[1738180757255,3.19746,3127.5,3126.8,3.19807]
[1738180757486,3.19746,3127.5,3126.7,3.19818]
[1738180757616,3.19772,3127.3,3126.2,3.19877]
[1738180757933,0.55,3127.3,3126.5,3.19839]
[1738180758128,0.55,3127.8,3126.2,0.0075]
[1738180758129,3.0,3127.8,3126.2,0.0075]
[1738180758353,3.0,3127.8,3126.1,3.8058]
[1738180758354,3.19724,3127.7,3126.1,0.8058]
[1738180758556,3.19768,3127.3,3126.6,3.19826]
[1738180758754,3.19768,3127.3,3125.7,4.19103074]
[1738180758755,3.0,3127.3,3125.7,4.19103074]
[1738180758920,3.0,3127.5,3126.9,3.198]
[1738180759123,0.8076,3127.9,3126.5,0.0075]
[1738180759459,0.8076,3127.9,3127.0,3.19788]
[1738180759646,0.8076,3127.9,3126.5,0.621356]
[1738180759848,0.7883,3129.2,3128.6,3.19624]
[1738180760053,0.7883,3129.2,3128.8,3.19601]
[1738180760359,3.19593,3129.0,3127.9,3.19699]
[1738180760517,3.19618,3128.8,3127.9,3.19699]
[1738180760721,3.0,3128.9,3128.3,3.19659]
[1738180760945,0.7883,3129.2,3128.7,3.19612]
[1738180761737,3.19601,3128.9,3128.3,3.19659]
[1738180762066,3.19593,3129.0,3128.3,3.19659]
[1738180762269,0.7883,3129.2,3128.7,3.19614]
[1738180762424,3.0,3129.1,3128.5,3.19638]
[1738180762759,3.0,3129.1,3127.9,0.015]
[1738180763060,0.7633,3129.7,3128.5,0.015]
[1738180763268,3.19437,3130.5,3129.3,3.19552]
[1738180763560,3.1949,3130.0,3129.4,3.19545]
[1738180763720,3.0,3130.1,3129.5,3.19539]
[1738180764121,0.62777915,3130.3,3129.7,3.19514]
[1738180764365,0.7633,3130.6,3130.1,3.19477]
[1738180764686,3.19314,3131.8,3129.5,4.01742]
[1738180764687,0.7762,3131.6,3129.5,4.01742]
[1738180764864,3.96952,3131.6,3131.0,3.19385]
[1738180765028,3.19367,3131.2,3129.8,4.19103074]
[1738180765228,3.19375,3131.2,3130.4,3.19438]
[1738180765428,0.55,3131.3,3130.6,3.19426]
[1738180765758,3.19384,3131.1,3130.5,3.19436]
[1738180765961,3.19384,3131.1,3129.8,7.38604074]
[1738180765962,3.19405,3130.9,3130.0,3.1948]
[1738180766259,0.7762,3131.6,3130.3,3.19448]
[1738180766260,3.19357,3131.3,3130.3,3.19448]
[1738180766565,0.7762,3131.6,3130.0,0.0075]
[1738180766748,3.19365,3131.3,3130.5,3.19435]
[1738180766952,3.0,3131.2,3130.6,3.19426]
[1738180767265,3.19406,3130.9,3130.0,3.19481]
[1738180767643,3.19406,3130.9,3130.1,3.19478]
[1738180767842,3.19406,3130.9,3129.5,0.8221]
[1738180767843,3.19425,3130.7,3129.9,3.19497]
[1738180768165,3.19441,3130.5,3129.7,3.19516]
[1738180768333,3.19441,3130.5,3129.6,3.19522]
[1738180768531,3.19441,3130.5,3128.9,0.7599]
[1738180768532,0.64016728,3130.9,3129.4,3.1955]
[1738180768756,3.1948,3130.1,3129.4,3.1955]
[1738180769070,3.1948,3130.1,3129.2,3.19568]
[1738180769071,3.19485,3130.1,3129.3,3.19553]
[1738180769366,3.19479,3130.1,3129.4,3.19547]
[1738180769567,3.19459,3130.3,3129.5,3.19538]
[1738180769752,3.19459,3130.3,3129.3,3.19551]
[1738180769954,3.19459,3130.3,3128.9,3.7674]
[1738180769955,0.55,3130.2,3129.0,3.19587]
[1738180770143,3.19503,3129.9,3129.0,3.19587]
[1738180770344,4.00279,3130.1,3129.4,3.19547]
[1738180770530,0.808,3130.8,3129.9,3.19489]
[1738180770768,4.00214,3130.8,3129.9,3.19489]
[1738180770973,3.0,3130.7,3130.2,3.19468]
[1738180771150,3.0,3130.5,3130.0,3.19486]
[1738180771345,0.55,3130.5,3129.4,0.7536]
[1738180771555,0.55,3130.5,3129.0,3.015]
[1738180771556,3.19469,3130.2,3129.1,6.3916]
[1738180771853,3.0,3130.3,3129.6,3.19529]
[1738180772246,3.55,3130.3,3128.9,0.8022]
[1738180772391,3.19439,3130.5,3128.9,0.8022]
[1738180772590,0.808,3130.8,3130.2,3.19463]
[1738180772757,0.808,3130.8,3130.1,3.19478]
[1738180772957,4.00213,3130.8,3130.1,3.19478]
[1738180773458,3.19418,3130.7,3130.1,3.19478]
[1738180773805,0.808,3130.8,3129.8,3.19499]
[1738180773955,0.808,3130.8,3129.8,3.514489]
[1738180774150,4.00214,3130.8,3129.9,3.19488]
[1738180774352,3.19445,3130.5,3129.8,3.19508]
[1738180774557,0.808,3130.8,3129.4,3.19548]
[1738180774799,3.19459,3130.3,3129.0,3.1959]
[1738180775093,3.19459,3130.3,3129.7,3.19519]
[1738180775094,3.0,3130.2,3129.7,3.19519]
[1738180775293,3.19445,3130.5,3129.8,3.19508]
[1738180775294,3.0,3130.4,3129.8,3.19508]
[1738180775453,0.808,3130.8,3128.9,3.8022]
[1738180775454,0.55,3130.6,3128.9,3.8022]
[1738180775650,0.808,3130.8,3128.9,3.8022]
[1738180775651,3.19422,3130.7,3129.1,3.1958]
[1738180775889,3.20113,3131.3,3128.9,3.8022]
[1738180775890,0.8249,3131.3,3131.0,3.19377]
[1738180776112,0.8249,3131.8,3130.4,0.015]
[1738180776285,0.8249,3131.8,3130.7,0.7914]
[1738180776688,4.01802,3131.8,3130.9,3.19395]
[1738180776889,3.19315,3131.7,3130.4,3.0]
[1738180777093,0.8249,3131.8,3130.8,3.19403]
[1738180777094,3.19334,3131.6,3130.8,3.19403]
[1738180777306,3.19379,3131.1,3130.5,3.1943]
[1738180777480,3.19441,3130.5,3129.8,3.98252]
[1738180777833,3.19441,3130.5,3128.9,3.19594]
[1738180777834,3.19459,3130.3,3129.4,3.98827]
[1738180777980,3.19414,3130.8,3129.4,3.98827]
[1738180777981,3.19469,3130.2,3129.4,3.98826]
[1738180778378,3.19513,3129.8,3129.0,3.97217]
[1738180778583,0.55,3130.0,3128.6,3.97257]
[1738180778847,3.19577,3129.2,3128.6,3.97257]
[1738180778985,3.19577,3129.2,3127.8,4.19103074]
[1738180778986,3.19541,3129.5,3128.1,0.7763]
[1738180779184,3.19599,3129.0,3128.4,3.19652]
[1738180779387,3.19573,3129.2,3128.1,0.7763]
[1738180779388,6.19551,3129.4,3128.7,3.19613]
[1738180779689,3.19589,3129.1,3128.4,3.19647]
[1738180780019,3.99886,3129.0,3127.8,3.19707]
[1738180780195,3.19617,3128.8,3128.1,3.19679]
[1738180780391,3.19621,3128.7,3128.1,3.19679]
[1738180780609,3.19617,3128.8,3128.1,3.19679]
[1738180780796,3.19617,3128.8,3128.2,3.19671]
[1738180781004,3.99883,3129.0,3128.3,3.19653]
[1738180781205,3.0,3128.9,3128.3,3.19653]
[1738180781800,3.0,3128.9,3128.1,3.19674]
[1738180782000,3.55,3129.3,3127.6,0.76]
[1738180782233,3.19614,3128.8,3128.1,3.19682]
[1738180782418,6.19622,3128.7,3128.1,3.19679]
[1738180782628,6.19622,3128.7,3128.0,3.19689]
[1738180782629,6.19622,3128.7,3128.2,3.19672]
[1738180782930,6.19622,3128.7,3128.1,3.19681]
[1738180782931,3.19628,3128.7,3128.1,3.19681]
[1738180783137,3.19628,3128.7,3128.0,3.19691]
[1738180783299,3.19628,3128.7,3128.1,3.1968]
[1738180783632,3.19623,3128.7,3128.1,3.19681]
[1738180783797,3.19604,3128.9,3128.2,3.19668]
[1738180784141,3.0,3129.2,3127.6,3.19731]
[1738180784142,3.19684,3128.1,3127.6,3.19731]
[1738180784287,0.8305,3128.7,3126.8,4.19103074]
[1738180784288,3.8305,3128.7,3126.8,4.19103074]
[1738180784619,3.8305,3128.7,3126.8,3.19808]
[1738180784620,3.0,3128.0,3126.8,3.19808]
[1738180784779,3.19725,3127.7,3127.1,3.19782]
[1738180784984,1.4649517,3128.7,3127.2,0.0075]
[1738180785223,3.19653,3128.4,3127.7,3.19717]
[1738180785421,3.0,3128.4,3126.9,3.0]
[1738180785720,6.19631,3128.6,3127.9,3.19703]
[1738180785953,3.19592,3129.0,3127.7,0.8355]
[1738180786256,3.19539,3129.6,3128.9,3.19592]
[1738180786257,0.7586,3129.6,3128.9,3.19592]
[1738180786378,0.7586,3129.6,3127.8,4.19103074]
[1738180786379,0.7586,3129.6,3127.9,3.0]
[1738180786583,3.19639,3128.6,3127.9,3.19702]
[1738180786819,3.19587,3129.1,3128.2,3.19672]
[1738180786986,0.7586,3129.6,3128.6,3.19631]
[1738180787189,3.19574,3129.2,3128.6,3.19631]
[1738180787388,3.1954,3129.5,3128.6,3.19631]
[1738180787607,3.19577,3129.2,3128.4,3.19643]
[1738180787787,3.19577,3129.2,3127.8,4.19103074]
[1738180787788,3.19607,3128.9,3128.0,3.19692]
[1738180788125,0.0075,3128.5,3126.8,0.7907]
[1738180788304,3.65193199,3128.4,3126.9,3.19796]
[1738180788627,3.0,3127.6,3126.3,0.7649]
[1738180788918,3.19755,3127.4,3126.7,3.19825]
[1738180789125,3.0,3127.5,3126.9,3.19805]
[1738180789421,3.0,3127.5,3126.3,3.96347]
[1738180789422,3.19756,3127.4,3126.7,3.19823]
[1738180789624,3.0,3127.5,3126.8,3.19807]
[1738180789797,3.0,3127.5,3127.0,3.19795]
[1738180789995,0.7533,3128.3,3127.0,0.639602]
[1738180790214,0.7533,3128.3,3127.4,3.1975]
[1738180790386,3.197,3128.0,3127.4,3.1975]
[1738180790591,3.19692,3128.1,3127.3,3.19762]
[1738180790787,3.19692,3128.1,3127.4,3.19745]
[1738180791127,0.7533,3128.3,3127.5,3.19743]
[1738180791128,3.94994,3128.3,3127.5,3.19743]
[1738180791422,3.19691,3128.1,3127.2,3.19765]
[1738180791581,3.19691,3128.1,3127.4,3.19751]
[1738180791784,3.94994,3128.3,3127.4,3.19751]
[1738180791980,3.0,3128.4,3127.4,0.319751]
[1738180792227,3.19624,3128.7,3127.4,0.319751]
[1738180792228,3.19632,3128.6,3127.4,0.0075]
[1738180792418,3.19685,3128.1,3127.4,3.19746]
[1738180792723,0.8131,3128.8,3126.9,3.19799]
[1738180792724,3.19735,3127.6,3126.9,3.19799]
[1738180792924,0.8131,3127.7,3126.5,0.7986]
[1738180793224,4.01034,3127.7,3127.1,3.19778]
[1738180793745,3.19734,3127.6,3126.9,3.19805]
[1738180793923,0.8131,3127.7,3127.1,3.19781]
[1738180794130,0.8131,3127.7,3126.9,3.19796]
[1738180794289,3.19784,3127.2,3126.5,3.99698]
[1738180794647,3.19784,3127.2,3126.3,3.19864]
[1738180794648,3.19786,3127.1,3126.3,3.19866]
[1738180794786,0.8131,3127.7,3126.1,0.7686]
[1738180794985,3.19855,3126.5,3125.7,0.62384628]
[1738180795190,0.7724,3126.9,3125.3,0.7686]
[1738180795191,4.18158837,3126.8,3125.3,3.9682]
[1738180795393,0.55,3126.5,3125.3,0.7686]
[1738180795642,3.19854,3126.5,3125.7,3.19927]
[1738180795944,3.19854,3126.5,3124.9,1.280154]
[1738180795945,3.19857,3126.4,3125.8,3.19911]
[1738180796226,3.7724,3126.9,3125.5,3.19945]
[1738180796227,0.7724,3126.9,3125.5,3.19941]
[1738180796439,3.19885,3126.2,3125.6,3.19936]
[1738180796599,0.55,3126.8,3125.0,3.21495]
[1738180796802,3.1987,3126.3,3125.6,3.19934]
[1738180797147,0.7724,3126.9,3125.8,0.015]
[1738180797309,0.7724,3126.9,3126.3,3.1986]
[1738180797642,0.7958,3127.6,3126.9,3.19805]
[1738180797789,0.7958,3127.6,3126.6,3.19828]
[1738180797990,3.0,3127.4,3126.8,3.19808]
[1738180798442,6.19762,3127.4,3126.8,3.19808]
[1738180798670,3.0,3127.4,3126.9,3.19805]
[1738180798954,3.7958,3127.6,3127.1,3.19776]